bitfinex/quotes_BTCUSD_20250831
["timestamp","ask_amount","ask_price","bid_price","bid_amount"]
[1756612413348,0.81068156,109570.0,109560.0,0.16837001]
[1756612413625,0.81068156,109570.0,109560.0,0.32333001]
[1756612415771,0.81068156,109570.0,109560.0,0.32133001]
[1756612416663,0.81068156,109570.0,109560.0,0.32339001]
[1756612417381,0.81068156,109570.0,109560.0,0.16637001]
[1756612417674,0.81068156,109570.0,109560.0,0.16318001]
[1756612417981,0.81068156,109570.0,109560.0,0.31814001]
[1756612419108,0.81068156,109570.0,109560.0,0.16318001]
[1756612419404,0.81068156,109570.0,109560.0,0.31818001]
[1756612419961,0.81068156,109570.0,109560.0,0.32136001]
[1756612421121,0.81068156,109570.0,109560.0,0.31814001]
[1756612422098,0.81068156,109570.0,109560.0,0.32132001]
[1756612422888,0.83812456,109570.0,109560.0,0.32132001]
[1756612423338,0.83812456,109570.0,109560.0,0.0702]
[1756612423639,1.56194839,109570.0,109560.0,0.0702]
[1756612423789,6.09646339,109570.0,109560.0,0.0702]
[1756612423983,0.18256503,109550.0,109540.0,0.07338]
[1756612424211,0.77362005,109550.0,109540.0,0.32346768]
[1756612424453,0.77255559,109550.0,109540.0,0.32346768]
[1756612425162,0.77255559,109550.0,109540.0,0.16846768]
[1756612425363,0.77255559,109550.0,109540.0,0.32140768]
[1756612425655,1.14000359,109550.0,109540.0,0.07524767]
[1756612425822,1.14000359,109550.0,109540.0,0.23024767]
[1756612426160,1.14000359,109550.0,109540.0,0.22824767]
[1756612426961,1.14000359,109550.0,109540.0,0.07324767]
[1756612427163,1.14000359,109550.0,109540.0,0.22820767]
[1756612427474,1.14100359,109550.0,109540.0,0.22520767]
[1756612428129,1.14200359,109550.0,109540.0,0.22520767]
[1756612428590,1.52582742,109550.0,109540.0,0.07024767]
[1756612428856,5.9720461,109550.0,109540.0,0.22520767]
[1756612429097,5.9720461,109550.0,109540.0,1e-08]
[1756612429271,5.9720461,109550.0,109520.0,0.07338]
[1756612429272,0.52259837,109530.0,109520.0,0.07338]
[1756612429476,1.11365339,109530.0,109520.0,0.22524]
[1756612429906,1.14110739,109530.0,109520.0,0.22524]
[1756612430402,0.55005237,109530.0,109520.0,0.22624]
[1756612430558,1.14110739,109530.0,109520.0,0.22923]
[1756612430761,1.14110739,109530.0,109520.0,0.23123]
[1756612431583,1.14110739,109530.0,109520.0,0.22824]
[1756612431732,1.14110739,109530.0,109520.0,0.23023]
[1756612432401,0.55005237,109530.0,109520.0,0.22823]
[1756612432803,1.14110739,109530.0,109520.0,0.22823]
[1756612433027,0.55005237,109530.0,109520.0,0.22823]
[1756612433280,1.14110739,109530.0,109520.0,0.23038]
[1756612433498,1.14210739,109530.0,109520.0,0.23038]
[1756612433843,1.14210739,109530.0,109520.0,0.22823]
[1756612434038,1.14210739,109530.0,109520.0,0.22524]
[1756612434260,1.14310739,109530.0,109520.0,0.22524]
[1756612434457,1.4386349,109530.0,109520.0,0.15504]
[1756612434862,1.14310739,109530.0,109520.0,0.15504]
[1756612435085,0.52261504,109520.0,109510.0,0.00299]
[1756612435284,1.40919757,109520.0,109510.0,0.25316001]
[1756612435694,1.45186225,109520.0,109510.0,0.16018]
[1756612435958,1.45186225,109520.0,109510.0,0.15803]
[1756612436305,1.43665457,109520.0,109510.0,0.15803]
[1756612436659,1.43665457,109520.0,109500.0,0.07319]
[1756612436864,1.11368674,109510.0,109500.0,0.16617001]
[1756612437109,1.11368674,109510.0,109500.0,0.32117001]
[1756612437302,1.14114374,109510.0,109500.0,0.32332001]
[1756612438020,1.14114374,109510.0,109500.0,0.32336768]
[1756612438728,1.14114374,109510.0,109500.0,0.32436768]
[1756612439273,1.14114374,109510.0,109500.0,0.32336768]
[1756612440569,0.55008872,109510.0,109500.0,0.32336768]
[1756612440712,1.14114374,109510.0,109500.0,0.32336768]
[1756612440953,0.84561623,109510.0,109500.0,0.32336768]
[1756612441120,0.55008872,109510.0,109500.0,0.32336768]
[1756612441489,1.14114374,109510.0,109500.0,0.32336768]
[1756612442001,1.11368674,109510.0,109500.0,0.32336768]
[1756612445274,0.52263172,109510.0,109500.0,0.32336768]
[1756612445397,1.11368674,109510.0,109500.0,0.32336768]
[1756612445837,1.11368674,109510.0,109500.0,0.32328768]
[1756612450042,0.52263172,109510.0,109500.0,0.32328768]
[1756612450258,1.11368674,109510.0,109500.0,0.32328768]
[1756612457247,1.11348192,109510.0,109500.0,0.32340768]
[1756612458274,1.11348192,109510.0,109500.0,0.16836768]
[1756612458438,1.11348192,109510.0,109500.0,0.32336768]
[1756612458804,0.81795441,109510.0,109500.0,0.32336768]
[1756612459005,0.81795441,109510.0,109500.0,0.16836768]
[1756612459454,0.81795441,109510.0,109500.0,0.32336768]
[1756612460702,1.11348192,109510.0,109500.0,0.32336768]
[1756612461094,0.5224269,109510.0,109500.0,0.32336768]
[1756612461424,1.11348192,109510.0,109500.0,0.32336768]
[1756612462410,1.11348192,109510.0,109500.0,0.16836768]
[1756612462661,0.5224269,109510.0,109500.0,0.32328768]
[1756612462843,1.11348192,109510.0,109500.0,0.32328768]
[1756612463840,0.81795441,109510.0,109500.0,0.32328768]
[1756612464139,0.5224269,109510.0,109500.0,0.32328768]
[1756612464348,0.81795441,109510.0,109500.0,0.32324768]
[1756612464554,0.81795441,109510.0,109500.0,0.32320768]
[1756612464918,0.5224269,109510.0,109500.0,0.32320768]
[1756612465118,0.81795441,109510.0,109500.0,0.32320768]
[1756612465995,0.81795441,109510.0,109500.0,0.16836768]
[1756612466169,0.81795441,109510.0,109500.0,0.32332768]
[1756612466629,0.1824269,109510.0,109500.0,0.61885519]
[1756612466849,0.21007204,109520.0,109500.0,0.50597608]
[1756612467057,0.21007204,109520.0,109510.0,0.18564172]
[1756612467289,0.18261504,109520.0,109510.0,0.18564172]
[1756612467497,0.18261504,109520.0,109510.0,0.18769172]
[1756612467708,0.18261504,109520.0,109510.0,0.05345282]
[1756612468123,0.18261504,109520.0,109510.0,0.14643283]
[1756612468332,0.18261504,109520.0,109510.0,0.12344401]
[1756612468546,0.18261504,109520.0,109510.0,0.28581401]
[1756612468748,0.18261504,109520.0,109510.0,0.12549401]
[1756612468958,0.18261504,109520.0,109510.0,0.25334001]
[1756612469171,0.96971472,109520.0,109510.0,0.25534001]
[1756612469583,1.30971472,109520.0,109510.0,0.25634001]
[1756612470062,0.52261504,109520.0,109510.0,0.25534001]
[1756612470270,0.52261504,109520.0,109510.0,0.26040001]
[1756612470698,0.91616488,109520.0,109510.0,0.26040001]
[1756612470917,0.91616488,109520.0,109510.0,0.09599001]
[1756612471135,0.52263172,109510.0,109500.0,0.10071367]
[1756612471353,0.52263172,109510.0,109500.0,0.26403367]
[1756612471354,0.91618156,109510.0,109500.0,0.26403367]
[1756612471561,0.91618156,109510.0,109500.0,0.26608367]
[1756612471769,0.52263172,109510.0,109500.0,0.26608367]
[1756612471979,0.73354984,109510.0,109500.0,0.54171208]
[1756612472193,0.18261504,109520.0,109500.0,0.54171208]
[1756612472438,0.57616488,109520.0,109510.0,0.09599001]
[1756612472645,0.18261504,109520.0,109510.0,0.09804001]
[1756612473020,0.57616488,109520.0,109510.0,0.09804001]
[1756612473773,0.57616488,109520.0,109510.0,0.09599001]
[1756612474009,0.57616488,109520.0,109510.0,0.09298001]
[1756612474134,0.18261504,109520.0,109510.0,0.09599001]
[1756612474335,0.18261504,109520.0,109510.0,0.09804001]
[1756612474592,0.57616488,109520.0,109510.0,0.09804001]
[1756612475196,0.57616488,109520.0,109510.0,0.26264001]
[1756612475412,0.18261504,109520.0,109510.0,0.26264001]
[1756612475571,0.52261504,109520.0,109510.0,0.29009601]
[1756612476059,0.91616488,109520.0,109510.0,0.29009601]
[1756612478035,0.91616488,109520.0,109510.0,0.28804601]
[1756612478482,0.91616488,109520.0,109510.0,0.29009601]
[1756612479252,0.91616488,109520.0,109510.0,0.12143601]
[1756612479447,0.91616488,109520.0,109510.0,0.28527601]
[1756612479700,0.91616488,109520.0,109510.0,0.028456]
[1756612479852,1.30971472,109520.0,109510.0,0.16484]
[1756612480049,1.30971472,109520.0,109510.0,0.16492]
[1756612480246,1.30971472,109520.0,109510.0,0.001]
[1756612480459,1.47355472,109520.0,109510.0,0.001]
[1756612480654,6.00806972,109520.0,109510.0,0.001]
[1756612480849,6.03552972,109520.0,109510.0,0.001]
[1756612481492,0.18263172,109510.0,109500.0,4.767e-05]
[1756612481841,5.11069656,109510.0,109500.0,4.767e-05]
[1756612482044,0.57618156,109510.0,109500.0,4.767e-05]
[1756612483102,0.57718156,109510.0,109500.0,4.767e-05]
[1756612484784,5.45169656,109510.0,109500.0,4.767e-05]
[1756612487150,5.61509656,109510.0,109500.0,4.767e-05]
[1756612487367,5.61513656,109510.0,109500.0,4.767e-05]
[1756612489902,5.70811657,109510.0,109500.0,4.767e-05]
[1756612490280,5.70811657,109510.0,109500.0,1e-08]
[1756612490783,5.70779657,109510.0,109500.0,1e-08]
[1756612491172,5.73526157,109510.0,109500.0,1e-08]
[1756612492105,5.17859173,109510.0,109500.0,1e-08]
[1756612492268,5.73526157,109510.0,109500.0,1e-08]
[1756612492866,5.57214157,109510.0,109500.0,1e-08]
[1756612493049,5.73514157,109510.0,109500.0,1e-08]
[1756612493265,5.73518157,109510.0,109500.0,1e-08]
[1756612496221,5.17859173,109510.0,109500.0,1e-08]
[1756612496456,5.73506157,109510.0,109500.0,1e-08]
[1756612496821,5.73498157,109510.0,109500.0,1e-08]
[1756612497049,5.57214157,109510.0,109500.0,1e-08]
[1756612497420,5.73494157,109510.0,109500.0,1e-08]
[1756612497616,5.34139173,109510.0,109500.0,1e-08]
[1756612497868,5.73494157,109510.0,109500.0,1e-08]
[1756612499700,5.34139173,109510.0,109500.0,1e-08]
[1756612499920,5.73494157,109510.0,109500.0,1e-08]
[1756612501877,5.34139173,109510.0,109500.0,1e-08]
[1756612502043,5.73494157,109510.0,109500.0,1e-08]
[1756612504334,5.34139173,109510.0,109500.0,1e-08]
[1756612504534,5.73494157,109510.0,109500.0,1e-08]
[1756612506102,5.57214157,109510.0,109500.0,1e-08]
[1756612506400,5.73510157,109510.0,109500.0,1e-08]
[1756612507535,5.57214157,109510.0,109500.0,1e-08]
[1756612507687,5.73486157,109510.0,109500.0,1e-08]
[1756612508803,5.73466157,109510.0,109500.0,0.00519001]
[1756612509208,5.73466157,109510.0,109500.0,1e-08]
[1756612511068,5.73466157,109510.0,109500.0,0.00314001]
[1756612511414,5.57214157,109510.0,109500.0,0.00519001]
[1756612511607,5.73446157,109510.0,109500.0,0.00519001]
[1756612513362,5.57214157,109510.0,109500.0,0.00519001]
[1756612513559,5.73430157,109510.0,109500.0,0.00519001]
[1756612515305,5.57214157,109510.0,109500.0,0.00519001]
[1756612515496,5.73422157,109510.0,109500.0,0.00519001]
[1756612516206,5.73422157,109510.0,109500.0,1e-08]
[1756612516709,5.73422157,109510.0,109500.0,0.00314001]
[1756612517711,5.34067173,109510.0,109500.0,0.00519001]
[1756612517942,5.73422157,109510.0,109500.0,0.00519001]
[1756612518220,5.34067173,109510.0,109500.0,0.00519001]
[1756612518433,5.73422157,109510.0,109500.0,0.00519001]
[1756612520449,5.34043173,109510.0,109500.0,0.00519001]
[1756612520645,5.64100156,109510.0,109500.0,0.00519001]
[1756612522938,5.24745172,109510.0,109500.0,0.00519001]
[1756612523195,5.64100156,109510.0,109500.0,0.00519001]
[1756612525327,5.24745172,109510.0,109500.0,0.00519001]
[1756612525554,5.64100156,109510.0,109500.0,0.00519001]
[1756612526546,5.24745172,109510.0,109500.0,0.00519001]
[1756612526780,5.64100156,109510.0,109500.0,0.00519001]
[1756612528939,0.52268176,109480.0,109470.0,0.0721143]
[1756612529140,0.52268176,109480.0,109470.0,0.16514199]
[1756612529346,0.52268176,109480.0,109470.0,0.16719199]
[1756612529742,0.56015351,109480.0,109470.0,0.16719199]
[1756612529959,0.56015351,109480.0,109470.0,0.09507769]
[1756612530159,0.56015351,109480.0,109470.0,0.09907769]
[1756612530579,0.56015351,109480.0,109470.0,0.10207769]
[1756612530952,0.56015351,109480.0,109470.0,0.10512769]
[1756612531456,0.56015351,109480.0,109470.0,0.10212769]
[1756612532069,0.56015351,109480.0,109470.0,0.09812769]
[1756612532256,0.56015351,109480.0,109470.0,0.10012769]
[1756612532428,0.56015351,109480.0,109470.0,0.09812769]
[1756612532752,0.56015351,109480.0,109470.0,0.10212769]
[1756612533206,0.03747175,109480.0,109470.0,0.10212769]
[1756612533409,0.22015351,109480.0,109470.0,0.10012769]
[1756612533612,0.18268176,109480.0,109470.0,0.10012769]
[1756612533825,0.18268176,109480.0,109470.0,0.10212769]
[1756612534451,0.5762316,109480.0,109470.0,0.10212769]
[1756612534658,0.61250273,109480.0,109470.0,0.10212769]
[1756612535508,0.21895289,109480.0,109470.0,0.10212769]
[1756612535716,0.61250273,109480.0,109470.0,0.10212769]
[1756612536142,0.61250273,109480.0,109470.0,0.09812769]
[1756612536368,0.61250273,109480.0,109470.0,0.09912769]
[1756612536530,0.21895289,109480.0,109470.0,0.10012769]
[1756612536894,0.61250273,109480.0,109470.0,0.10012769]
[1756612537075,0.21895289,109480.0,109470.0,0.10012769]
[1756612537226,0.61250273,109480.0,109470.0,0.10012769]
[1756612537434,0.51441545,109480.0,109470.0,0.10012769]
[1756612538288,0.21895289,109480.0,109470.0,0.10012769]
[1756612538497,0.51441545,109480.0,109470.0,0.10012769]
[1756612539403,0.21895289,109480.0,109470.0,0.10012769]
[1756612539587,0.51441545,109480.0,109470.0,0.10012769]
[1756612539960,0.51648545,109480.0,109470.0,0.26156769]
[1756612540164,1.15194801,109480.0,109470.0,0.09502769]
[1756612540510,1.15497801,109480.0,109470.0,0.00204768]
[1756612541314,1.31633801,109480.0,109470.0,0.00104768]
[1756612542267,1.31633801,109480.0,109470.0,4.768e-05]
[1756612542476,0.52269845,109470.0,109460.0,0.0017]
[1756612542683,1.27793357,109470.0,109460.0,0.00178718]
[1756612542856,1.28000357,109470.0,109460.0,0.00178718]
[1756612543259,0.68907845,109470.0,109460.0,0.00178718]
[1756612543530,0.94946825,109470.0,109460.0,0.00178718]
[1756612543738,5.64522325,109470.0,109460.0,0.00178718]
[1756612545304,5.48398325,109470.0,109460.0,0.00178718]
[1756612545619,5.64518325,109470.0,109460.0,0.00178718]
[1756612545847,5.64818325,109470.0,109460.0,0.00178718]
[1756612546032,5.48698325,109470.0,109460.0,0.00178718]
[1756612546207,5.64810325,109470.0,109460.0,0.00178718]
[1756612546403,5.64710325,109470.0,109460.0,0.00178718]
[1756612546611,5.64810325,109470.0,109460.0,0.00178718]
[1756612547839,5.68995945,109470.0,109460.0,0.00178718]
[1756612548808,5.68975945,109470.0,109460.0,0.00178718]
[1756612549369,5.29556065,109470.0,109460.0,0.00178718]
[1756612549592,5.68975945,109470.0,109460.0,0.00178718]
[1756612551312,5.13464065,109470.0,109460.0,0.00178718]
[1756612551481,5.68983945,109470.0,109460.0,0.00178718]
[1756612551687,5.52883945,109470.0,109460.0,0.00178718]
[1756612551873,5.68967945,109470.0,109460.0,0.00178718]
[1756612552081,5.68975945,109470.0,109460.0,0.00178718]
[1756612552575,5.68975945,109470.0,109450.0,0.0004]
[1756612552812,5.61230894,109460.0,109450.0,1e-08]
[1756612553178,5.64182294,109460.0,109450.0,1e-08]
[1756612553389,5.64503294,109460.0,109450.0,1e-08]
[1756612554265,5.25083414,109460.0,109450.0,1e-08]
[1756612554454,5.64503294,109460.0,109450.0,1e-08]
[1756612554931,5.64507294,109460.0,109450.0,1e-08]
[1756612555324,5.64807294,109460.0,109450.0,1e-08]
[1756612555727,5.25387414,109460.0,109450.0,1e-08]
[1756612555936,5.09295414,109460.0,109450.0,1e-08]
[1756612556136,5.64811294,109460.0,109450.0,1e-08]
[1756612556346,5.65011294,109460.0,109450.0,1e-08]
[1756612556709,5.25591414,109460.0,109450.0,1e-08]
[1756612556828,5.65011294,109460.0,109450.0,1e-08]
[1756612557523,5.09495414,109460.0,109450.0,1e-08]
[1756612557728,5.65015294,109460.0,109450.0,1e-08]
[1756612558428,5.48915294,109460.0,109450.0,1e-08]
[1756612559069,5.25587414,109460.0,109450.0,1e-08]
[1756612559275,5.48915294,109460.0,109450.0,1e-08]
[1756612559618,5.65011294,109460.0,109450.0,1e-08]
[1756612560055,5.25595414,109460.0,109450.0,1e-08]
[1756612560450,5.65015294,109460.0,109450.0,1e-08]
[1756612560681,5.48915294,109460.0,109450.0,1e-08]
[1756612560915,5.65015294,109460.0,109450.0,1e-08]
[1756612562518,5.25595414,109460.0,109450.0,1e-08]
[1756612562724,5.65015294,109460.0,109450.0,1e-08]
[1756612569170,0.52273184,109450.0,109440.0,1e-08]
[1756612569369,6.00676444,109450.0,109440.0,1e-08]
[1756612569821,6.03949344,109450.0,109440.0,1e-08]
[1756612570988,6.04049344,109450.0,109440.0,1e-08]
[1756612572188,6.06544411,109450.0,109440.0,1e-08]
[1756612572392,6.15842412,109450.0,109440.0,1e-08]
[1756612574604,6.20842412,109450.0,109440.0,1e-08]
[1756612575020,0.91696403,109430.0,109420.0,1e-08]
[1756612575165,5.61263903,109430.0,109420.0,1e-08]
[1756612575350,5.61788903,109430.0,109420.0,1e-08]
[1756612575555,5.45672903,109430.0,109420.0,1e-08]
[1756612575765,5.61479903,109430.0,109420.0,0.00216001]
[1756612576195,5.64228103,109430.0,109420.0,0.00580717]
[1756612576718,5.68371606,109430.0,109420.0,0.00580717]
[1756612577642,5.28951726,109430.0,109420.0,0.00580717]
[1756612577852,5.68175606,109430.0,109420.0,0.00580717]
[1756612578268,5.28755726,109430.0,109420.0,0.00580717]
[1756612578487,5.68175606,109430.0,109420.0,0.00580717]
[1756612580243,5.52240606,109430.0,109420.0,0.00580717]
[1756612580553,5.52039606,109430.0,109420.0,0.00580717]
[1756612580749,5.68179606,109430.0,109420.0,0.00580717]
[1756612580953,5.68380606,109430.0,109420.0,0.00580717]
[1756612581824,5.28960726,109430.0,109420.0,0.00580717]
[1756612582028,5.68380606,109430.0,109420.0,0.00580717]
[1756612583922,6.12400606,109430.0,109420.0,0.00580717]
[1756612584601,6.12400606,109430.0,109420.0,0.00263717]
[1756612590521,5.56840726,109430.0,109420.0,0.00557717]
[1756612590738,6.12420606,109430.0,109420.0,0.00263717]
[1756612591394,6.61768539,109430.0,109420.0,0.00263717]
[1756612591862,6.32179268,109430.0,109420.0,0.00263717]
[1756612592435,6.61768539,109430.0,109420.0,0.00263717]
[1756612594390,5.73000726,109430.0,109420.0,0.00263717]
[1756612594612,6.61768539,109430.0,109420.0,0.00263717]
[1756612596840,6.62074539,109430.0,109420.0,0.00047717]
[1756612599674,6.61768539,109430.0,109420.0,0.00047717]
[1756612599885,6.45608539,109430.0,109420.0,0.00249717]
[1756612600058,6.61764539,109430.0,109420.0,0.00543717]
[1756612600646,6.61764539,109430.0,109420.0,0.00249717]
[1756612600850,6.61764539,109430.0,109420.0,0.00047717]
[1756612601016,6.62070539,109430.0,109420.0,1e-08]
[1756612601812,6.71597606,109430.0,109420.0,1e-08]
[1756612602540,6.71697606,109430.0,109420.0,1e-08]
[1756612602947,6.80995607,109430.0,109420.0,1e-08]
[1756612603113,6.81095607,109430.0,109420.0,1e-08]
[1756612603310,0.52278194,109420.0,109410.0,1e-08]
[1756612603521,6.10681507,109420.0,109410.0,1e-08]
[1756612603732,5.22420694,109420.0,109410.0,1e-08]
[1756612603930,5.22787194,109420.0,109410.0,1e-08]
[1756612604867,5.52376465,109420.0,109410.0,1e-08]
[1756612606784,5.52476465,109420.0,109410.0,1e-08]
[1756612607338,5.52376465,109420.0,109410.0,1e-08]
[1756612607555,0.52279864,109410.0,109400.0,0.00314]
[1756612607761,5.21919364,109410.0,109400.0,0.00314]
[1756612608078,0.68668864,109410.0,109400.0,0.00516]
[1756612608210,1.60185377,109410.0,109400.0,0.0002]
[1756612608412,6.13942877,109410.0,109400.0,0.0002]
[1756612610053,5.97754877,109410.0,109400.0,0.0002]
[1756612610650,6.09547945,109410.0,109400.0,0.0002]
[1756612610876,6.25747945,109410.0,109400.0,0.0002]
[1756612611414,6.25759945,109410.0,109400.0,0.0002]
[1756612611614,6.25763945,109410.0,109400.0,0.0002]
[1756612612034,6.25959945,109410.0,109400.0,0.0002]
[1756612612451,5.37192132,109410.0,109400.0,0.0002]
[1756612612665,6.25959945,109410.0,109400.0,0.0002]
[1756612613446,6.09747945,109410.0,109400.0,0.0002]
[1756612613676,6.25967945,109410.0,109400.0,0.0002]
[1756612614273,5.37200132,109410.0,109400.0,0.0002]
[1756612614499,6.25967945,109410.0,109400.0,0.0002]
[1756612614981,6.09747945,109410.0,109400.0,0.0002]
[1756612615409,6.25971945,109410.0,109400.0,0.0002]
[1756612617630,6.09747945,109410.0,109400.0,0.0002]
[1756612617811,6.25971945,109410.0,109400.0,0.0002]
[1756612618388,6.09747945,109410.0,109400.0,0.0002]
[1756612618629,6.25971945,109410.0,109400.0,0.0002]
[1756612621877,6.27998693,109410.0,109400.0,1e-08]
[1756612623750,7.16766506,109410.0,109400.0,1e-08]
[1756612624291,7.16770506,109410.0,109400.0,1e-08]
[1756612624507,5.3923488,109410.0,109400.0,1e-08]
[1756612624727,6.28002693,109410.0,109400.0,1e-08]
[1756612624943,7.16770506,109410.0,109400.0,1e-08]
[1756612625317,6.28002693,109410.0,109400.0,1e-08]
[1756612626084,7.21770506,109410.0,109400.0,1e-08]
[1756612626466,6.40030693,109410.0,109400.0,1e-08]
[1756612627699,6.40034693,109410.0,109400.0,1e-08]
[1756612636379,7.28802506,109410.0,109400.0,1e-08]
[1756612636519,7.12574506,109410.0,109400.0,1e-08]
[1756612636716,7.28794506,109410.0,109400.0,1e-08]
[1756612639188,0.54776602,109400.0,109390.0,1e-08]
[1756612639332,7.11293729,109400.0,109390.0,1e-08]
[1756612639719,6.25068664,109400.0,109390.0,1e-08]
[1756612639846,6.25435264,109400.0,109390.0,1e-08]
[1756612640312,6.25535264,109400.0,109390.0,1e-08]
[1756612640800,6.25435264,109400.0,109390.0,1e-08]
[1756612641164,6.25535264,109400.0,109390.0,1e-08]
[1756612641463,6.25735264,109400.0,109390.0,1e-08]
[1756612642262,6.07453729,109400.0,109390.0,1e-08]
[1756612642637,6.2979094,109400.0,109390.0,1e-08]
[1756612648553,0.18283206,109390.0,109380.0,1e-08]
[1756612648723,6.2700052,109390.0,109380.0,0.00013058]
[1756612648927,0.52284878,109380.0,109370.0,0.00334]
[1756612649147,6.10656191,109380.0,109370.0,0.00334]
[1756612649390,6.10656191,109380.0,109370.0,0.00537]
[1756612649747,6.13405691,109380.0,109370.0,0.00537]
[1756612650571,6.13393691,109380.0,109370.0,0.00537]
[1756612650915,6.22882692,109380.0,109370.0,0.00323]
[1756612651207,6.07067692,109380.0,109370.0,0.00423]
[1756612651390,6.22882692,109380.0,109370.0,0.00423]
[1756612651804,6.22882692,109380.0,109370.0,0.00737]
[1756612651982,6.22874692,109380.0,109370.0,0.00423]
[1756612653051,6.06746692,109380.0,109370.0,0.00423]
[1756612653236,6.22874692,109380.0,109370.0,0.00423]
[1756612654008,6.07067692,109380.0,109370.0,0.00423]
[1756612654142,6.23179692,109380.0,109370.0,0.00423]
[1756612654347,6.22858692,109380.0,109370.0,0.00423]
[1756612654693,6.22854692,109380.0,109370.0,0.00423]
[1756612655011,5.33891879,109380.0,109370.0,0.00737]
[1756612655215,6.66679692,109380.0,109370.0,0.00737]
[1756612655780,6.50571692,109380.0,109370.0,0.00737]
[1756612655981,6.66679692,109380.0,109370.0,0.00737]
[1756612656438,5.52505878,109380.0,109370.0,0.00737]
[1756612656667,2.03930191,109380.0,109370.0,0.00737]
[1756612658376,1.87822191,109380.0,109370.0,0.00737]
[1756612658517,2.03934191,109380.0,109370.0,0.00737]
[1756612659661,1.2423292,109380.0,109370.0,0.00737]
[1756612659860,2.03930191,109380.0,109370.0,0.00737]
[1756612660792,2.03926191,109380.0,109370.0,0.00737]
[1756612662144,2.03922191,109380.0,109370.0,0.00737]
[1756612664432,2.03898191,109380.0,109370.0,0.00737]
[1756612666270,1.87822191,109380.0,109370.0,0.00737]
[1756612666607,2.03898191,109380.0,109370.0,0.00737]
[1756612667652,2.03886191,109380.0,109370.0,0.00737]
[1756612668251,1.15118378,109380.0,109370.0,0.00737]
[1756612668374,2.03886191,109380.0,109370.0,0.00737]
[1756612668738,1.15118378,109380.0,109370.0,0.00737]
[1756612668952,2.03886191,109380.0,109370.0,0.00737]
[1756612669287,0.99054378,109380.0,109370.0,0.00737]
[1756612669489,1.5823292,109380.0,109370.0,0.00737]
[1756612669760,1.7430492,109380.0,109370.0,0.00737]
[1756612669967,1.5823292,109380.0,109370.0,0.10035001]
[1756612670142,1.5548342,109380.0,109370.0,0.10035001]
[1756612678600,0.96304878,109380.0,109370.0,0.10035001]
[1756612678801,1.5548342,109380.0,109370.0,0.10035001]
[1756612679234,0.96304878,109380.0,109370.0,0.43321551]
[1756612679437,1.5548342,109380.0,109370.0,0.30415433]
[1756612679661,0.96304878,109380.0,109370.0,0.30415433]
[1756612679861,1.5548342,109380.0,109370.0,0.33164233]
[1756612680311,0.7802,109380.0,109370.0,0.64000233]
[1756612680457,0.47886751,109390.0,109380.0,0.2037876]
[1756612680670,0.81886751,109390.0,109380.0,0.46203761]
[1756612680863,0.5229748,109390.0,109380.0,0.46199761]
[1756612681072,0.81886751,109390.0,109380.0,0.48948261]
[1756612681487,0.5229748,109390.0,109380.0,0.48948261]
[1756612681748,0.81886751,109390.0,109380.0,0.49148261]
[1756612682567,0.5229748,109390.0,109380.0,0.49148261]
[1756612682756,0.81886751,109390.0,109380.0,0.49148261]
[1756612683249,0.5229748,109390.0,109380.0,0.48948261]
[1756612683402,0.91754332,109390.0,109380.0,0.49248261]
[1756612683601,0.34014274,109390.0,109380.0,0.49644261]
[1756612684599,0.5229748,109390.0,109380.0,0.49644261]
[1756612684852,0.91754332,109390.0,109380.0,0.49644261]
[1756612685028,0.5229748,109390.0,109380.0,0.49644261]
[1756612685247,0.91754332,109390.0,109380.0,0.49644261]
[1756612685661,0.5229748,109390.0,109380.0,0.15331383]
[1756612685843,0.92263332,109390.0,109380.0,0.31057383]
[1756612686039,0.92263332,109390.0,109380.0,0.26014001]
[1756612686239,0.92263332,109390.0,109380.0,0.09998001]
[1756612686930,1.08279332,109390.0,109380.0,0.09598001]
[1756612687123,0.6882248,109390.0,109380.0,0.09298001]
[1756612687455,0.92263332,109390.0,109380.0,0.09798001]
[1756612687779,0.5280648,109390.0,109380.0,0.09798001]
[1756612687943,0.92263332,109390.0,109380.0,0.09798001]
[1756612688489,0.5280648,109390.0,109380.0,0.09798001]
[1756612688621,0.92263332,109390.0,109380.0,0.005]
[1756612688824,1.08275332,109390.0,109380.0,0.005]
[1756612689529,0.6881848,109390.0,109380.0,0.003]
[1756612689745,0.91754332,109390.0,109380.0,0.00497]
[1756612689947,0.91754332,109390.0,109380.0,0.09889001]
[1756612690314,0.92263332,109390.0,109380.0,0.09595001]
[1756612690711,0.92263332,109390.0,109380.0,0.09795001]
[1756612694896,0.92263332,109390.0,109380.0,0.25803001]
[1756612695100,0.92263332,109390.0,109380.0,0.25606001]
[1756612695631,0.5280648,109390.0,109380.0,0.25803001]
[1756612695823,0.92263332,109390.0,109380.0,0.25803001]
[1756612699648,0.5250748,109390.0,109380.0,0.25803001]
[1756612699856,0.91754332,109390.0,109380.0,0.26116001]
[1756612700499,0.5229748,109390.0,109380.0,0.26116001]
[1756612700854,0.91754332,109390.0,109380.0,0.26116001]
[1756612701543,0.5229748,109390.0,109380.0,0.26116001]
[1756612701687,0.91754332,109390.0,109380.0,0.26116001]
[1756612702100,0.91754332,109390.0,109380.0,0.28864701]
[1756612702411,0.5229748,109390.0,109380.0,0.28864701]
[1756612702611,0.91754332,109390.0,109380.0,0.28864701]
[1756612702985,0.91964332,109390.0,109380.0,0.28551701]
[1756612703822,0.5250748,109390.0,109380.0,0.28864701]
[1756612704026,0.91964332,109390.0,109380.0,0.28864701]
[1756612704173,0.91754332,109390.0,109380.0,0.28864701]
[1756612705469,0.91964332,109390.0,109380.0,0.28864701]
[1756612705778,0.5283048,109390.0,109380.0,0.28354701]
[1756612705986,0.92287332,109390.0,109380.0,0.12346701]
[1756612706184,0.92287332,109390.0,109380.0,0.28310701]
[1756612706799,0.92287332,109390.0,109380.0,0.12346701]
[1756612706933,0.92287332,109390.0,109380.0,0.28310701]
[1756612707634,0.5283048,109390.0,109380.0,0.28310701]
[1756612707841,0.92287332,109390.0,109380.0,0.28310701]
[1756612708087,0.92287332,109390.0,109380.0,0.12346701]
[1756612708293,0.92287332,109390.0,109380.0,0.28302701]
[1756612711238,0.5283048,109390.0,109380.0,0.28302701]
[1756612711442,0.92287332,109390.0,109380.0,0.28302701]
[1756612712712,0.92287332,109390.0,109380.0,0.28509701]
[1756612717875,0.92287332,109390.0,109380.0,0.28302701]
[1756612718658,0.92287332,109390.0,109380.0,0.28509701]
[1756612719103,0.92287332,109390.0,109380.0,0.25490001]
[1756612719521,0.92287332,109390.0,109380.0,0.25697001]
[1756612720777,0.92287332,109390.0,109380.0,0.25490001]
[1756612720893,0.92287332,109390.0,109380.0,0.25697001]
[1756612721340,1.12032672,109390.0,109380.0,0.25697001]
[1756612724574,0.5229748,109390.0,109380.0,0.25697001]
[1756612724782,1.11499672,109390.0,109380.0,0.26010001]
[1756612724991,1.11709672,109390.0,109380.0,0.26010001]